fUSD/lending_fUSD_20241216
["ID","MTS","AMOUNT","RATE_DAILY","PERIOD"]
[345530977,1734317439184,-505.93116552,0.00021917,3]
[345530978,1734317439194,-500.0,0.00021917,3]
[345530979,1734317439203,-500.0,0.00021917,3]
[345530980,1734317439213,-500.0,0.00021917,3]
[345530981,1734317439222,-101.39224712,0.00021917,3]
[345530982,1734317439246,-398.60775288,0.00021917,3]
[345530983,1734317439255,-500.0,0.00021917,2]
[345530984,1734317439265,-500.0,0.00021917,3]
[345530985,1734317439277,-500.0,0.00021917,2]
[345530986,1734317439287,-97.57329813,0.00021917,3]
[345530989,1734317440012,-402.42670187,0.00021917,3]
[345530990,1734317440022,-500.0,0.00021917,2]
[345530991,1734317440034,-400.0,0.00021917,3]
[345530992,1734317440043,-500.0,0.00021917,3]
[345530993,1734317440053,-500.0,0.00021917,3]
[345530994,1734317440062,-501.28341159,0.00021917,3]
[345530995,1734317440071,-500.0,0.00021917,3]
[345530996,1734317440080,-500.0,0.00021917,3]
[345530997,1734317440090,-500.0,0.00021917,3]
[345530998,1734317440099,-502.06633915,0.00021917,3]
[345530999,1734317440108,-500.0,0.00021917,3]
[345531000,1734317440118,-500.0,0.00021917,3]
[345531001,1734317440127,-500.0,0.00021917,3]
[345531002,1734317440136,-500.0,0.00021917,3]
[345531003,1734317440146,-500.0,0.00021917,3]
[345531004,1734317440155,-500.0,0.00021917,3]
[345531005,1734317440164,-500.0,0.00021917,3]
[345531006,1734317440174,-500.0,0.00021917,2]
[345531007,1734317440183,-500.0,0.00021917,3]
[345531008,1734317440192,-500.0,0.00021917,3]
[345531009,1734317440201,-500.0,0.00021917,3]
[345531010,1734317440210,-500.0,0.00021917,3]
[345531011,1734317440219,-500.0,0.00021917,3]
[345531012,1734317440228,-500.0,0.00021917,3]
[345531013,1734317440237,-500.0,0.00021917,3]
[345531014,1734317440247,-73.12878246,0.00021917,3]
[345531015,1734317440258,-350.12701182,0.00021917,3]
[345531016,1734317440270,-77.69394722,0.00021917,3]
[345531017,1734317440284,-201.88144408,0.00021917,3]
[345531018,1734317440295,-298.11855592,0.00021917,3]
[345531019,1734317440304,-500.0,0.00021917,3]
[345531020,1734317440313,-500.0,0.00021917,3]
[345531021,1734317440324,-500.0,0.00021917,3]
[345531022,1734317440333,-111.31745688,0.00021917,3]
[345531023,1734317440344,-390.18095644,0.00021917,3]
[345531024,1734317440353,-52.43114365,0.00021917,3]
[345531028,1734317444311,-447.56885635,0.00021917,3]
[345531029,1734317444321,-500.0,0.00021917,3]
[345531030,1734317444331,-500.0,0.00021917,3]
[345531031,1734317444341,-500.0,0.00021917,3]
[345531032,1734317444351,-215.66,0.00021917,3]
[345531033,1734317444361,-500.0,0.00021917,3]
[345531034,1734317444371,-205.49144567,0.00021917,3]
[345531035,1734317444381,-179.96240534,0.00021917,3]
[345531036,1734317444391,-500.0,0.00021917,3]
[345531037,1734317444401,-500.0,0.00021917,3]
[345531038,1734317444411,-500.0,0.00021917,3]
[345531039,1734317444420,-500.0,0.00021917,3]
[345531040,1734317444430,-500.0,0.00021917,3]
[345531041,1734317444439,-500.0,0.00021917,3]
[345531042,1734317444448,-500.0,0.00021917,3]
[345531043,1734317444458,-500.0,0.00021917,3]
[345531044,1734317444467,-500.0,0.00021917,3]
[345531045,1734317444477,-500.0,0.00021917,3]
[345531046,1734317444487,-476.36409296,0.00021917,3]
[345531047,1734317444496,-500.0,0.00021917,3]
[345531048,1734317444506,-500.0,0.00021917,3]
[345531049,1734317444516,-500.0,0.00021917,3]
[345531050,1734317444525,-500.0,0.00021917,3]
[345531051,1734317444538,-500.0,0.00021917,3]
[345531052,1734317444548,-500.0,0.00021917,3]
[345531053,1734317444557,-500.0,0.00021917,3]
[345531055,1734317444567,-500.0,0.00021917,3]
[345531057,1734317444576,-501.42933698,0.00021917,3]
[345531058,1734317444586,-349.1915356,0.00021917,3]
[345531059,1734317444595,-500.0,0.00021917,3]
[345531060,1734317444604,-395.05081511,0.00021917,3]
[345531061,1734317444613,-500.0,0.00021917,3]
[345531062,1734317444623,-500.0,0.00021917,3]
[345531063,1734317444633,-500.0,0.00021917,3]
[345531064,1734317444642,-500.0,0.00021917,3]
[345531065,1734317444651,-500.0,0.00021917,3]
[345531066,1734317444661,-500.0,0.00021917,3]
[345531067,1734317444670,-500.0,0.00021917,3]
[345531068,1734317444680,-500.0,0.00021917,3]
[345531069,1734317444690,-500.0,0.00021917,3]
[345531070,1734317444700,-500.0,0.00021917,3]
[345531071,1734317444709,-500.0,0.00021917,3]
[345531072,1734317444719,-500.0,0.00021917,3]
[345531073,1734317444728,-500.0,0.00021917,3]
[345531074,1734317444739,-500.0,0.00021917,3]
[345531075,1734317444749,-500.0,0.00021917,3]
[345531076,1734317444758,-500.0,0.00021917,3]
[345531077,1734317444768,-500.0,0.00021917,3]
[345531078,1734317444778,-500.0,0.00021917,3]
[345531079,1734317444791,-500.0,0.00021917,3]
[345531081,1734317444800,-500.0,0.00021917,3]
[345531083,1734317444809,-500.0,0.00021917,3]
[345531085,1734317444819,-536.26045271,0.00021917,3]
[345531087,1734317444832,-500.0,0.00021917,3]
[345531089,1734317444842,-513.51611579,0.00021917,3]
[345531091,1734317444851,-500.0,0.00021917,3]
[345531092,1734317444860,-500.0,0.00021917,3]
[345531093,1734317444871,-500.0,0.00021917,3]
[345531094,1734317444881,-506.65688883,0.00021917,3]
[345531095,1734317444891,-300.0,0.00021917,3]
[345531096,1734317444902,-300.0,0.00021917,3]
[345531097,1734317444912,-300.0,0.00021917,3]
[345531098,1734317444922,-500.0,0.00021917,3]
[345531099,1734317444933,-500.0,0.00021917,3]
[345531100,1734317444943,-500.76051655,0.00021917,3]
[345531101,1734317444952,-500.0,0.00021917,3]
[345531102,1734317444961,-500.0,0.00021917,3]
[345531103,1734317444970,-500.0,0.00021917,3]
[345531104,1734317444979,-500.0,0.00021917,3]
[345531105,1734317444990,-500.0,0.00021917,3]
[345531106,1734317444999,-500.0,0.00021917,3]
[345531107,1734317445009,-500.0,0.00021917,3]
[345531108,1734317445019,-500.0,0.00021917,3]
[345531109,1734317445031,-500.0,0.00021917,3]
[345531110,1734317445041,-259.37175383,0.00021917,3]
[345531111,1734317445050,-500.0,0.00021917,3]
[345531112,1734317445060,-500.0,0.00021917,3]
[345531113,1734317445070,-500.0,0.00021917,3]
[345531114,1734317445079,-500.0,0.00021917,3]
[345531115,1734317445089,-500.0,0.00021917,3]
[345531116,1734317445098,-500.0,0.00021917,3]
[345531117,1734317445107,-504.73034376,0.00021917,3]
[345531118,1734317445117,-500.0,0.00021917,3]
[345531119,1734317445126,-500.0,0.00021917,3]
[345531120,1734317445135,-500.0,0.00021917,3]
[345531121,1734317445145,-502.72559126,0.00021917,3]
[345531122,1734317445155,-500.0,0.00021917,3]
[345531123,1734317445164,-504.00709261,0.00021917,3]
[345531124,1734317445174,-470.51,0.00021917,3]
[345531125,1734317445184,-502.65868812,0.00021917,3]
[345531126,1734317445194,-500.0,0.00021917,3]
[345531127,1734317445203,-500.0,0.00021917,3]
[345531128,1734317445213,-502.00289396,0.00021917,3]
[345531129,1734317445222,-500.0,0.00021917,3]
[345531130,1734317445232,-502.24907009,0.00021917,3]
[345531131,1734317445242,-500.0,0.00021917,3]
[345531132,1734317445251,-480.0,0.00021917,3]
[345531133,1734317445260,-500.0,0.00021917,3]
[345531134,1734317445270,-522.04000041,0.00021917,3]
[345531135,1734317445281,-500.0,0.00021917,3]
[345531136,1734317445290,-500.0,0.00021917,3]
[345531137,1734317445299,-500.0,0.00021917,3]
[345531138,1734317445308,-500.0,0.00021917,3]
[345531139,1734317445320,-500.0,0.00021917,3]
[345531140,1734317445330,-500.0,0.00021917,3]
[345531141,1734317445340,-500.0,0.00021917,3]
[345531142,1734317445350,-502.19338532,0.00021917,3]
[345531143,1734317445360,-1000.0,0.00021917,30]
[345531144,1734317445370,-500.0,0.00021917,3]
[345531145,1734317445379,-500.0,0.00021917,3]
[345531146,1734317445389,-500.0,0.00021917,3]
[345531147,1734317445399,-500.0,0.00021917,3]
[345531148,1734317445408,-500.0,0.00021917,3]
[345531149,1734317445417,-500.0,0.00021917,3]
[345531150,1734317445427,-500.0,0.00021917,3]
[345531151,1734317445436,-500.0,0.00021917,3]
[345531152,1734317445446,-500.0,0.00021917,3]
[345531153,1734317445455,-500.0,0.00021917,3]
[345531154,1734317445464,-503.68970729,0.00021917,3]
[345531155,1734317445474,-500.0,0.00021917,3]
[345531156,1734317445483,-500.0,0.00021917,3]
[345531157,1734317445492,-500.0,0.00021917,3]
[345531158,1734317445502,-500.0,0.00021917,3]
[345531159,1734317445511,-500.0,0.00021917,3]
[345531160,1734317445519,-500.0,0.00021917,3]
[345531161,1734317445532,-509.94,0.00021917,3]
[345531162,1734317445542,-501.70642621,0.00021917,3]
[345531163,1734317445552,-514.53711869,0.00021917,3]
[345531164,1734317445562,-500.0,0.00021917,3]
[345531165,1734317445572,-500.0,0.00021917,3]
[345531166,1734317445582,-634.55,0.00021917,3]
[345531167,1734317445591,-502.23953032,0.00021917,3]
[345531168,1734317445601,-480.0,0.00021917,3]
[345531169,1734317445610,-500.0,0.00021917,3]
[345531170,1734317445619,-505.15349114,0.00021917,3]
[345531171,1734317445628,-2907.15853,0.00021917,2]
[345531172,1734317445637,-500.0,0.00021917,3]
[345531173,1734317445647,-500.0,0.00021917,3]
[345531174,1734317445656,-500.0,0.00021917,3]
[345531175,1734317445666,-500.0,0.00021917,3]
[345531176,1734317445676,-500.0,0.00021917,3]
[345531177,1734317445685,-500.0,0.00021917,3]
[345531178,1734317445695,-500.0,0.00021917,3]
[345531179,1734317445706,-500.0,0.00021917,3]
[345531180,1734317445716,-504.13460567,0.00021917,3]
[345531181,1734317445726,-629.98622337,0.00021917,3]
[345531182,1734317445735,-480.0,0.00021917,3]
[345531183,1734317445745,-500.0,0.00021917,3]
[345531184,1734317445755,-500.0,0.00021917,3]
[345531185,1734317445764,-500.0,0.00021917,3]
[345531186,1734317445774,-509.13264118,0.00021917,3]
[345531187,1734317445786,-500.0,0.00021917,3]
[345531188,1734317445795,-500.0,0.00021917,3]
[345531189,1734317445805,-500.0,0.00021917,3]
[345531190,1734317445815,-500.0,0.00021917,3]
[345531191,1734317445829,-500.0,0.00021917,3]
[345531192,1734317445839,-1000.0,0.00021917,3]
[345531193,1734317445849,-500.0,0.00021917,3]
[345531194,1734317445859,-500.0,0.00021917,3]
[345531195,1734317445868,-500.0,0.00021917,3]
[345531196,1734317445878,-500.0,0.00021917,3]
[345531197,1734317445888,-500.0,0.00021917,3]
[345531198,1734317445898,-500.0,0.00021917,3]
[345531199,1734317445910,-500.0,0.00021917,3]
[345531200,1734317445920,-504.15544264,0.00021917,3]
[345531202,1734317445930,-505.31174359,0.00021917,3]
[345531203,1734317445939,-500.0,0.00021917,3]
[345531204,1734317445948,-504.64572839,0.00021917,3]
[345531205,1734317445956,-500.0,0.00021917,3]
[345531206,1734317445966,-500.0,0.00021917,3]
[345531207,1734317445975,-500.0,0.00021917,3]
[345531208,1734317445984,-557.13,0.00021917,3]
[345531209,1734317445994,-500.0,0.00021917,3]
[345531210,1734317446004,-336.49,0.00021917,3]
[345531211,1734317446014,-500.0,0.00021917,3]
[345531212,1734317446023,-500.0,0.00021917,3]
[345531213,1734317446033,-500.0,0.00021917,3]
[345531214,1734317446043,-504.86,0.00021917,3]
[345531215,1734317446053,-501.99737256,0.00021917,3]
[345531216,1734317446062,-500.0,0.00021917,3]
[345531217,1734317446072,-500.0,0.00021917,3]
[345531218,1734317446082,-500.0,0.00021917,3]
[345531219,1734317446091,-500.0,0.00021917,3]
[345531220,1734317446101,-500.0,0.00021917,3]
[345531221,1734317446110,-500.96456951,0.00021917,3]
[345531222,1734317446120,-501.2381257,0.00021917,3]
[345531223,1734317446129,-500.0,0.00021917,3]
[345531224,1734317446138,-500.70924674,0.00021917,3]
[345531225,1734317446148,-500.0,0.00021917,3]
[345531226,1734317446158,-500.0,0.00021917,3]
[345531227,1734317446168,-500.0,0.00021917,3]
[345531228,1734317446178,-500.97415195,0.00021917,3]
[345531229,1734317446187,-500.0,0.00021917,3]
[345531230,1734317446196,-499.18532561,0.00021917,3]
[345531231,1734317446206,-500.98448351,0.00021917,3]
[345531232,1734317446215,-500.0,0.00021917,3]
[345531233,1734317446224,-261.66040782,0.00021917,3]
[345531234,1734317446233,-500.0,0.00021917,3]
[345531235,1734317446243,-447.09,0.00021917,3]
[345531236,1734317446252,-500.40315173,0.00021917,3]
[345531237,1734317446262,-500.0,0.00021917,3]
[345531251,1734317446487,-165.19,0.00021917,3]
[345531253,1734317446498,-500.0,0.00021917,3]
[345531255,1734317446507,-500.0,0.00021917,3]
[345531257,1734317446518,-500.0,0.00021917,3]
[345531259,1734317446527,-500.0,0.00021917,3]
[345531261,1734317446539,-501.09477373,0.00021917,3]
[345531263,1734317446549,-500.0,0.00021917,3]
[345531265,1734317446558,-500.0,0.00021917,3]
[345531267,1734317446567,-500.0,0.00021917,3]
[345531269,1734317446577,-501.0840155,0.00021917,3]
[345531271,1734317446586,-500.0,0.00021917,3]
[345531272,1734317446595,-500.0,0.00021917,3]
[345531274,1734317446604,-499.35049193,0.00021917,3]
[345531276,1734317446614,-500.0,0.00021917,3]
[345531279,1734317446624,-500.0,0.00021917,3]
[345531280,1734317446633,-501.95233685,0.00021917,3]
[345531282,1734317446643,-500.0,0.00021917,3]
[345531284,1734317446652,-500.0,0.00021917,3]
[345531286,1734317446662,-500.0,0.00021917,3]
[345531287,1734317446671,-500.0,0.00021917,3]
[345531288,1734317446681,-500.0,0.00021917,3]
[345531289,1734317446690,-500.86333916,0.00021917,3]
[345531290,1734317446700,-565.77776041,0.00021917,3]
[345531291,1734317446710,-535.62,0.00021917,3]
[345531292,1734317446720,-514.19297063,0.00021917,3]
[345531293,1734317446729,-428.23800613,0.00021917,3]
[345531294,1734317446738,-500.0,0.00021917,3]
[345531295,1734317446747,-500.0,0.00021917,3]
[345531296,1734317446756,-316.77,0.00021917,3]
[345531297,1734317446766,-500.0,0.00021917,3]
[345531298,1734317446775,-515.21473004,0.00021917,3]
[345531300,1734317446792,-505.74124963,0.00021917,3]
[345531302,1734317446801,-500.0,0.00021917,3]
[345531304,1734317446814,-500.0,0.00021917,3]
[345531306,1734317446828,-500.0,0.00021917,3]
[345531308,1734317446838,-500.0,0.00021917,3]
[345531310,1734317446847,-7822.69,0.00021917,3]
[345531312,1734317446856,-500.0,0.00021917,3]
[345531314,1734317446867,-502.55293709,0.00021917,3]
[345531316,1734317446876,-483.96,0.00021917,3]
[345531318,1734317446886,-165.78,0.00021917,3]
[345531320,1734317446897,-587.39087274,0.00021917,3]
[345531321,1734317446906,-500.0,0.00021917,3]
[345531323,1734317446915,-500.0,0.00021917,3]
[345531325,1734317446924,-507.27601105,0.00021917,3]
[345531327,1734317446934,-500.0,0.00021917,3]
[345531329,1734317446944,-500.0,0.00021917,3]
[345531331,1734317446954,-500.0,0.00021917,3]
[345531333,1734317446964,-500.0,0.00021917,3]
[345531335,1734317446972,-500.0,0.00021917,3]
[345531337,1734317446982,-500.0,0.00021917,3]
[345531339,1734317446991,-500.0,0.00021917,3]
[345531341,1734317447000,-500.0,0.00021917,3]
[345531343,1734317447009,-500.0,0.00021917,3]
[345531345,1734317447018,-500.0,0.00021917,3]
[345531347,1734317447030,-500.0,0.00021917,3]
[345531349,1734317447043,-502.35263021,0.00021917,3]
[345531351,1734317447053,-500.0,0.00021917,3]
[345531353,1734317447062,-155.04,0.00021917,3]
[345531355,1734317447072,-500.0,0.00021917,3]
[345531357,1734317447081,-500.0,0.00021917,3]
[345531359,1734317447091,-500.0,0.00021917,3]
[345531361,1734317447101,-500.0,0.00021917,3]
[345531363,1734317447110,-204.16195255,0.00021917,3]
[345531365,1734317447120,-500.0,0.00021917,3]
[345531366,1734317447129,-500.0,0.00021917,3]
[345531367,1734317447138,-500.0,0.00021917,3]
[345531368,1734317447148,-500.0,0.00021917,3]
[345531369,1734317447158,-500.0,0.00021917,3]
[345531370,1734317447167,-500.0,0.00021917,3]
[345531371,1734317447176,-500.0,0.00021917,3]
[345531372,1734317447185,-379.61585876,0.00021917,3]
[345531373,1734317447195,-500.0,0.00021917,3]
[345531374,1734317447204,-500.0,0.00021917,3]
[345531375,1734317447214,-500.0,0.00021917,3]
[345531376,1734317447223,-500.0,0.00021917,3]
[345531377,1734317447232,-500.0,0.00021917,3]
[345531378,1734317447242,-500.0,0.00021917,3]
[345531379,1734317447251,-500.0,0.00021917,3]
[345531380,1734317447260,-475.0,0.00021917,3]
[345531381,1734317447270,-500.0,0.00021917,3]
[345531382,1734317447280,-504.43853516,0.00021917,3]
[345531383,1734317447289,-500.0,0.00021917,3]
[345531384,1734317447299,-500.0,0.00021917,3]
[345531385,1734317447308,-2095.66653777,0.00021947,2]
[345531386,1734317447318,-433.29234226,0.00021947,2]
[345531387,1734317447327,-1431.17,0.00021966,2]
[345531388,1734317447337,-526.57704257,0.0002199,2]
[345531389,1734317447346,-2000.0,0.00022,2]
[345531390,1734317447355,-2000.0,0.00022,2]
[345531391,1734317447365,-176.47,0.0002201,2]
[345531392,1734317447374,-2095.66653777,0.00022011,2]
[345531393,1734317447384,-433.29234226,0.00022011,2]
[345531394,1734317447395,-800.0,0.00022048,10]
[345531395,1734317447404,-406.0,0.0002205,2]
[345531396,1734317447414,-231.31491148,0.00022062,2]
[345531397,1734317447427,-2095.66653777,0.00022076,2]
[345531398,1734317447436,-433.29234226,0.00022076,2]
[345531399,1734317447446,-231.31491148,0.00022093,2]
[345531400,1734317447455,-200.62,0.0002211,2]
[345531401,1734317447464,-723.07184994,0.00022119,2]
[345531402,1734317447475,-231.31491148,0.00022124,2]
[345531403,1734317447484,-526.57704257,0.00022127,2]
[345531404,1734317447494,-2000.0,0.00022134,2]
[345531405,1734317447503,-200.0,0.00022134,2]
[345531406,1734317447513,-200.0,0.00022134,2]
[345531407,1734317447522,-723.07184984,0.00022139,2]
[345531408,1734317447534,-2095.66653777,0.00022141,2]
[345531409,1734317447543,-433.29234226,0.00022141,2]
[345531410,1734317447552,-231.31491148,0.00022155,2]
[345531411,1734317447562,-723.07184984,0.00022159,2]
[345531412,1734317447571,-1281.70227189,0.00022163,2]
[345531413,1734317447581,-723.07184984,0.00022179,2]
[345531414,1734317447590,-231.31491148,0.00022185,2]
[345531415,1734317447599,-723.07184984,0.00022199,2]
[345531416,1734317447608,-2095.66653777,0.00022206,2]
[345531417,1734317447618,-433.29234226,0.00022206,2]
[345531418,1734317447627,-231.31491148,0.00022216,2]
[345531419,1734317447637,-999.0,0.00022219,7]
[345531420,1734317447646,-999.0,0.00022219,7]
[345531421,1734317447656,-999.0,0.00022219,7]
[345531422,1734317447665,-999.0,0.00022219,7]
[345531423,1734317447674,-999.0,0.00022219,7]
[345531424,1734317447683,-999.0,0.00022219,7]
[345531425,1734317447694,-999.0,0.00022219,7]
[345531426,1734317447703,-999.0,0.00022219,7]
[345531427,1734317447712,-999.0,0.00022219,7]
[345531428,1734317447724,-999.0,0.00022219,7]
[345531429,1734317447734,-999.0,0.00022219,7]
[345531430,1734317447743,-999.0,0.00022219,7]
[345531431,1734317447752,-999.0,0.00022219,7]
[345531432,1734317447761,-999.0,0.00022219,7]
[345531433,1734317447771,-999.0,0.00022219,7]
[345531434,1734317447781,-999.0,0.00022219,7]
[345531435,1734317447791,-999.0,0.00022219,7]
[345531436,1734317447801,-999.0,0.00022219,7]
[345531437,1734317447810,-999.0,0.00022219,7]
[345531438,1734317447823,-999.0,0.00022219,7]
[345531439,1734317447834,-537.03337384,0.00022219,7]
[345531440,1734317447843,-723.07184984,0.00022219,2]
[345531441,1734317447854,-1500.0,0.00022224,2]
[345531442,1734317447864,-808.7,0.00022235,7]
[345531443,1734317447874,-808.7,0.00022235,7]
[345531444,1734317447884,-150.0,0.00022235,2]
[345531445,1734317447894,-723.07184984,0.00022239,2]
[345531446,1734317447904,-200.0,0.0002224,2]
[345531447,1734317447914,-231.31491148,0.00022247,2]
[345531448,1734317447923,-723.07184984,0.0002226,2]
[345531449,1734317447932,-526.57704257,0.00022263,2]
[345531450,1734317447942,-1500.0,0.00022266,2]
[345531451,1734317447951,-1500.0,0.00022268,2]
[345531452,1734317447961,-150.0,0.00022269,2]
[345531453,1734317447970,-2095.66653777,0.0002227,2]
[345531454,1734317447980,-433.29234226,0.0002227,2]
[345531455,1734317447989,-406.0,0.00022275,2]
[345531456,1734317447998,-231.31491148,0.00022277,2]
[345531457,1734317448007,-150.0,0.00022278,2]
[345531458,1734317448017,-1500.0,0.00022279,2]
[345531459,1734317448027,-723.07184984,0.0002228,2]
[345531460,1734317448037,-150.0,0.00022295,2]
[345531461,1734317448047,-500.0,0.00022297,3]
[345531462,1734317448057,-500.0,0.00022297,3]
[345531463,1734317448066,-500.0,0.00022297,3]
[345531464,1734317448075,-296.84,0.00022297,3]
[345531465,1734317448085,-500.0,0.00022297,3]
[345531466,1734317448095,-284.3,0.00022297,3]
[345531467,1734317448105,-500.0,0.00022297,3]
[345531468,1734317448115,-552.39642261,0.00022297,3]
[345531469,1734317448124,-500.0,0.00022297,3]
[345531470,1734317448134,-516.48,0.00022297,3]
[345531471,1734317448143,-500.0,0.00022297,3]
[345531472,1734317448153,-214.94,0.00022297,3]
[345531473,1734317448163,-500.0,0.00022297,3]
[345531474,1734317448172,-500.0,0.00022297,3]
[345531475,1734317448181,-500.0,0.00022297,3]
[345531476,1734317448191,-500.0,0.00022297,3]
[345531477,1734317448200,-7822.69,0.00022297,3]
[345531478,1734317448209,-500.0,0.00022297,3]
[345531479,1734317448219,-500.0,0.00022297,3]
[345531480,1734317448229,-500.0,0.00022297,3]
[345531481,1734317448239,-500.0,0.00022297,3]
[345531482,1734317448249,-500.0,0.00022297,3]
[345531483,1734317448258,-500.0,0.00022297,3]
[345531484,1734317448267,-500.0,0.00022297,3]
[345531485,1734317448277,-500.0,0.00022297,3]
[345531486,1734317448289,-500.0,0.00022297,3]
[345531487,1734317448299,-161.55096685,0.00022297,3]
[345531488,1734317448309,-500.0,0.00022297,3]
[345531489,1734317448319,-500.0,0.00022297,3]
[345531490,1734317448328,-500.0,0.00022297,3]
[345531491,1734317448338,-500.0,0.00022297,3]
[345531492,1734317448348,-441.24,0.00022297,3]
[345531493,1734317448358,-500.0,0.00022297,3]
[345531494,1734317448367,-500.0,0.00022297,3]
[345531495,1734317448377,-500.0,0.00022297,3]
[345531496,1734317448387,-330.94,0.00022298,3]
[345531497,1734317448396,-500.0,0.00022298,3]
[345531498,1734317448406,-500.0,0.00022298,3]
[345531499,1734317448416,-500.0,0.00022298,2]
[345531500,1734317448425,-500.0,0.00022298,3]
[345531501,1734317448435,-500.0,0.00022298,3]
[345531502,1734317448445,-500.0,0.00022298,3]
[345531503,1734317448454,-500.0,0.00022298,3]
[345531504,1734317448464,-500.0,0.00022298,3]
[345531505,1734317448474,-500.0,0.00022298,3]
[345531506,1734317448483,-500.0,0.00022298,3]
[345531507,1734317448493,-500.0,0.00022298,3]
[345531508,1734317448502,-384.3,0.00022298,3]
[345531509,1734317448512,-180.02,0.00022298,3]
[345531510,1734317448522,-500.0,0.00022298,3]
[345531511,1734317448534,-500.0,0.00022298,3]
[345531512,1734317448544,-500.0,0.00022298,3]
[345531513,1734317448553,-500.0,0.00022298,3]
[345531514,1734317448564,-193.5346444,0.00022298,3]
[345531515,1734317448574,-500.0,0.00022298,3]
[345531516,1734317448584,-501.23271514,0.00022298,3]
[345531517,1734317448594,-500.0,0.00022298,3]
[345531518,1734317448604,-601.8403897,0.00022298,3]
[345531519,1734317448614,-500.0,0.00022298,3]
[345531520,1734317448623,-401.45,0.00022298,3]
[345531521,1734317448633,-547.60775631,0.00022298,3]
[345531522,1734317448642,-605.08070355,0.00022298,3]
[345531523,1734317448652,-500.0,0.00022298,3]
[345531524,1734317448661,-500.0,0.00022298,3]
[345531525,1734317448671,-500.0,0.00022298,3]
[345531526,1734317448680,-500.0,0.00022298,3]
[345531527,1734317448690,-500.0,0.00022298,3]
[345531528,1734317448699,-500.0,0.00022298,3]
[345531529,1734317448708,-500.0,0.00022298,3]
[345531530,1734317448718,-500.0,0.00022298,3]
[345531531,1734317448727,-1000.0,0.00022298,30]
[345531532,1734317448737,-500.0,0.00022298,3]
[345531533,1734317448746,-500.0,0.00022298,3]
[345531534,1734317448756,-500.0,0.00022298,3]
[345531535,1734317448765,-500.0,0.00022298,3]
[345531536,1734317448774,-500.0,0.00022298,3]
[345531537,1734317448785,-475.0,0.00022298,3]
[345531538,1734317448794,-500.0,0.00022298,3]
[345531539,1734317448804,-500.0,0.00022298,3]
[345531540,1734317448813,-500.0,0.00022298,3]
[345531541,1734317448828,-500.0,0.00022298,3]
[345531542,1734317448838,-500.0,0.00022298,3]
[345531543,1734317448847,-265.50184702,0.00022298,3]
[345531544,1734317448857,-500.0,0.00022298,3]
[345531545,1734317448867,-500.0,0.00022298,3]
[345531546,1734317448876,-500.0,0.00022298,3]
[345531547,1734317448885,-500.0,0.00022298,3]
[345531548,1734317448895,-500.0,0.00022298,3]
[345531549,1734317448905,-500.0,0.00022298,3]
[345531550,1734317448914,-439.1083647,0.00022298,3]
[345531551,1734317448924,-500.0,0.00022298,3]
[345531552,1734317448934,-500.0,0.00022298,3]
[345531553,1734317448944,-500.0,0.00022298,3]